[Event "32nd NATO Chess Championship"]
[Site "Tartu, Estonia"]
[Date "2022.06.30"]
[Round "6.26"]
[White "Ivsek, Cveto"]
[Black "Hater, David"]
[Result "1/2-1/2"]
[TimeControl "90 min + 30 sec increment from move one"]
[WhiteFideId "14608405"]
[BlackFideId "2017776"]
[WhiteElo "1766"]
[BlackElo "1944"]

1. d4 {[%clk 01:30:54]} {[%emt 00:00:05]} Nf6 {[%clk 01:30:52]} {[%emt
00:00:08]} 2. Bf4 {[%clk 01:30:38]} {[%emt 00:00:46]} g6 {[%clk 01:31:01]}
{[%emt 00:00:22]} 3. e3 {[%clk 01:29:12]} {[%emt 00:01:57]} Bg7 {[%clk
01:31:04]} {[%emt 00:00:26]} 4. c4 {[%clk 01:25:59]} {[%emt 00:03:44]} d5
{[%clk 01:28:51]} {[%emt 00:02:43]} 5. Nc3 {[%clk 01:24:06]} {[%emt 00:02:22]}
c5 {[%clk 01:27:49]} {[%emt 00:01:32]} 6. Bxb8 {[%clk 01:20:30]} {[%emt
00:04:07]} Rxb8 {[%clk 01:27:54]} {[%emt 00:00:24]} 7. dxc5 {[%clk 01:19:16]}
{[%emt 00:01:44]} Qa5 {[%clk 01:25:56]} {[%emt 00:02:28]} 8. Qa4+ {[%clk
01:16:51]} {[%emt 00:02:56]} Qxa4 {[%clk 01:26:20]} {[%emt 00:00:06]} 9. Nxa4
{[%clk 01:16:30]} {[%emt 00:00:51]} Bd7 {[%clk 01:20:49]} {[%emt 00:06:00]} 10.
Nc3 {[%clk 01:15:24]} {[%emt 00:01:36]} dxc4 {[%clk 01:18:31]} {[%emt
00:02:48]} 11. Nf3 {[%clk 01:09:38]} {[%emt 00:06:16]} Rc8 {[%clk 01:11:07]}
{[%emt 00:07:54]} 12. Bxc4 {[%clk 01:09:08]} {[%emt 00:01:00]} Rxc5 {[%clk
01:10:45]} {[%emt 00:00:52]} 13. Bb3 {[%clk 01:08:30]} {[%emt 00:01:07]} Bc6
{[%clk 01:06:46]} {[%emt 00:04:30]} 14. O-O {[%clk 00:59:38]} {[%emt 00:09:22]}
Bxf3 {[%clk 00:57:34]} {[%emt 00:09:42]} 15. gxf3 {[%clk 00:59:59]} {[%emt
00:00:09]} Nd7 {[%clk 00:54:03]} {[%emt 00:04:01]} 16. Ne4 {[%clk 00:55:36]}
{[%emt 00:04:54]} Rc8 {[%clk 00:49:50]} {[%emt 00:04:42]} 17. Rab1 {[%clk
00:53:48]} {[%emt 00:02:18]} O-O {[%clk 00:49:52]} {[%emt 00:00:29]} 18. Rfd1
{[%clk 00:51:41]} {[%emt 00:02:36]} Rfd8 {[%clk 00:45:03]} {[%emt 00:05:19]} 19.
Ng5 {[%clk 00:47:47]} {[%emt 00:04:23]} Ne5 {[%clk 00:38:07]} {[%emt 00:07:27]}
20. f4 {[%clk 00:30:53]} {[%emt 00:17:24]} h6 {[%clk 00:26:39]} {[%emt
00:11:58]} 21. fxe5 {[%clk 00:27:02]} {[%emt 00:04:22]} hxg5 {[%clk 00:26:58]}
{[%emt 00:00:11]} 22. e6 {[%clk 00:25:12]} {[%emt 00:02:20]} Rxd1+ {[%clk
00:14:23]} {[%emt 00:13:05]} 23. Rxd1 {[%clk 00:25:20]} {[%emt 00:00:22]} Bxb2
{[%clk 00:14:40]} {[%emt 00:00:13]} 24. exf7+ {[%clk 00:24:42]} {[%emt
00:01:07]} Kf8 {[%clk 00:15:03]} {[%emt 00:00:07]} 25. Rd7 {[%clk 00:23:28]}
{[%emt 00:01:45]} Rb8 {[%clk 00:15:22]} {[%emt 00:00:11]} 26. Kg2 {[%clk
00:22:18]} {[%emt 00:01:39]} Bf6 {[%clk 00:15:16]} {[%emt 00:00:36]} 27. h3
{[%clk 00:22:29]} {[%emt 00:00:19]} a5 {[%clk 00:15:33]} {[%emt 00:00:13]}
1/2-1/2

[Event "32nd NATO Chess Championship"]
[Site "Tartu, Estonia"]
[Date "2022.06.30"]
[Round "6.29"]
[White "Heran-Boily, Samuel"]
[Black "Van Den Heuvel, Tonnie"]
[Result "1/2-1/2"]
[TimeControl "90 min + 30 sec increment from move one"]
[WhiteFideId "1554565"]
[BlackFideId "1012924"]
[WhiteElo "1871"]
[BlackElo "1799"]

1. e4 {[%clk 01:30:41]} {[%emt 00:00:12]} d6 {[%clk 01:30:33]} {[%emt
00:00:33]} 2. d4 {[%clk 01:30:49]} {[%emt 00:00:23]} Nf6 {[%clk 01:29:42]}
{[%emt 00:01:21]} 3. Nc3 {[%clk 01:30:53]} {[%emt 00:00:26]} Nbd7 {[%clk
01:28:20]} {[%emt 00:01:52]} 4. f4 {[%clk 01:26:20]} {[%emt 00:05:02]} e5
{[%clk 01:23:02]} {[%emt 00:05:48]} 5. Nf3 {[%clk 01:25:45]} {[%emt 00:01:05]}
exd4 {[%clk 01:22:30]} {[%emt 00:01:03]} 6. Nxd4 {[%clk 01:22:27]} {[%emt
00:03:49]} Nc5 {[%clk 01:22:00]} {[%emt 00:01:00]} 7. Bd3 {[%clk 01:17:30]}
{[%emt 00:05:27]} Bg4 {[%clk 01:21:09]} {[%emt 00:01:21]} 8. Nf3 {[%clk
01:16:54]} {[%emt 00:01:06]} Be7 {[%clk 01:15:26]} {[%emt 00:06:12]} 9. O-O
{[%clk 01:15:38]} {[%emt 00:01:47]} O-O {[%clk 01:14:45]} {[%emt 00:01:11]} 10.
h3 {[%clk 01:13:26]} {[%emt 00:02:42]} Bxf3 {[%clk 01:12:04]} {[%emt 00:03:10]}
11. Qxf3 {[%clk 01:11:34]} {[%emt 00:02:22]} Nxd3 {[%clk 01:12:18]} {[%emt
00:00:17]} 12. cxd3 {[%clk 01:11:04]} {[%emt 00:01:00]} c6 {[%clk 01:12:41]}
{[%emt 00:00:07]} 13. Be3 {[%clk 01:09:16]} {[%emt 00:02:17]} Qa5 {[%clk
01:11:30]} {[%emt 00:01:42]} 14. a3 {[%clk 01:05:15]} {[%emt 00:04:31]} Nd7
{[%clk 01:08:44]} {[%emt 00:03:15]} 15. b4 {[%clk 01:02:37]} {[%emt 00:03:08]}
Qa6 {[%clk 01:08:25]} {[%emt 00:00:49]} 16. d4 {[%clk 01:00:20]} {[%emt
00:02:47]} Nb6 {[%clk 01:06:39]} {[%emt 00:02:17]} 17. Ne2 {[%clk 00:55:44]}
{[%emt 00:05:05]} Rae8 {[%clk 01:02:14]} {[%emt 00:04:56]} 18. Ng3 {[%clk
00:53:01]} {[%emt 00:03:13]} Nc4 {[%clk 01:00:35]} {[%emt 00:02:09]} 19. Bc1
{[%clk 00:46:16]} {[%emt 00:07:14]} Qb6 {[%clk 00:52:33]} {[%emt 00:08:32]} 20.
Qd3 {[%clk 00:40:22]} {[%emt 00:06:24]} d5 {[%clk 00:45:22]} {[%emt 00:07:41]}
21. Kh1 {[%clk 00:38:25]} {[%emt 00:02:28]} a5 {[%clk 00:43:15]} {[%emt
00:02:37]} 22. f5 {[%clk 00:32:28]} {[%emt 00:06:26]} f6 {[%clk 00:42:27]}
{[%emt 00:01:18]} 23. Nh5 {[%clk 00:31:29]} {[%emt 00:01:29]} Bd6 {[%clk
00:41:52]} {[%emt 00:01:05]} 24. bxa5 {[%clk 00:26:50]} {[%emt 00:05:09]} Qc7
{[%clk 00:39:47]} {[%emt 00:02:34]} 25. Nf4 {[%clk 00:24:26]} {[%emt 00:02:53]}
Bxf4 {[%clk 00:38:13]} {[%emt 00:02:04]} 26. Bxf4 {[%clk 00:24:44]} {[%emt
00:00:11]} Qxa5 {[%clk 00:38:08]} {[%emt 00:00:36]} 27. exd5 {[%clk 00:23:43]}
{[%emt 00:01:31]} Qxd5 {[%clk 00:37:40]} {[%emt 00:00:58]} 28. Rac1 {[%clk
00:22:01]} {[%emt 00:02:12]} b5 {[%clk 00:36:38]} {[%emt 00:01:31]} 29. a4
{[%clk 00:19:40]} {[%emt 00:02:51]} Re4 {[%clk 00:35:44]} {[%emt 00:00:54]} 30.
axb5 {[%clk 00:17:05]} {[%emt 00:03:06]} cxb5 {[%clk 00:35:18]} {[%emt
00:01:26]} 31. Qb3 {[%clk 00:16:25]} {[%emt 00:01:10]} Ra8 {[%clk 00:27:31]}
{[%emt 00:08:17]} 32. Rb1 {[%clk 00:15:44]} {[%emt 00:01:09]} 1/2-1/2

[Event "32nd NATO Chess Championship"]
[Site "Tartu, Estonia"]
[Date "2022.06.30"]
[Round "6.30"]
[White "O`byrne, Daniel"]
[Black "Nielsen, Jan Mose"]
[Result "1/2-1/2"]
[TimeControl "90 min + 30 sec increment from move one"]
[WhiteFideId "440825"]
[BlackFideId "1405306"]
[WhiteElo "1664"]
[BlackElo "1991"]

1. d4 c5 2. c3 Qc7 3. g3 e6 4. Bg2 d5 5. Bf4 Qb6 6. Qc2 cxd4 7. cxd4 Na6 8. Nf3
Bd7 9. a3 Nf6 10. O-O Be7 11. Nc3 O-O 12. Qd2 Qb3 13. Ne5 Rfd8 {[%clk
00:00:00]} 14. Rfc1 {[%clk 01:30:36]} Be8 {[%clk 00:00:00]} 15. Rab1 {[%clk
01:30:36]} Rac8 {[%clk 00:00:00]} 16. Qe3 {[%clk 01:30:36]} Qb6 {[%clk
00:00:00]} 17. b4 {[%clk 01:30:36]} Nh5 {[%clk 00:00:00]} 18. Bf3 {[%clk
01:30:36]} Nxf4 {[%clk 00:00:00]} 19. Qxf4 {[%clk 01:30:36]} f6 {[%clk
00:00:00]} 20. Nd3 {[%clk 01:30:36]} Rc4 {[%clk 00:00:00]} 21. Nc5 {[%clk
01:30:36]} Bg6 {[%clk 00:00:00]} 22. Ra1 {[%clk 01:30:36]} Nxc5 {[%clk
00:00:00]} 23. bxc5 {[%clk 01:30:36]} Qa5 {[%clk 00:00:00]} 24. Qe3 {[%clk
01:30:36]} Kf7 {[%clk 00:00:00]} 25. Kg2 {[%clk 01:30:36]} Qa6 {[%clk
00:00:00]} 26. h4 {[%clk 01:30:36]} h6 {[%clk 00:00:00]} 27. Qd2 {[%clk
01:30:36]} b6 {[%clk 00:00:00]} 28. e3 {[%clk 01:30:36]} bxc5 {[%clk 00:00:00]}
29. Be2 {[%clk 01:30:36]} cxd4 {[%clk 00:00:00]} 30. Bxc4 {[%clk 01:30:36]}
dxc4 {[%clk 00:00:00]} 31. exd4 {[%clk 01:30:36]} Bd3 {[%clk 00:00:00]} 32. Qe3
{[%clk 01:30:36]} Qb7+ {[%clk 00:00:00]} 33. Kg1 {[%clk 01:30:36]} Qb6 {[%clk
00:00:00]} 34. Re1 {[%clk 01:30:36]} Rxd4 {[%clk 00:00:00]} 35. Na4 {[%clk
01:30:36]} Qd6 {[%clk 00:00:00]} 36. Nb2 {[%clk 01:30:36]} f5 {[%clk 00:00:00]}
37. Nxd3 {[%clk 01:30:36]} cxd3 {[%clk 00:00:00]} 38. Rad1 {[%clk 01:30:36]}
Qd5 {[%clk 00:00:00]} 39. Rd2 {[%clk 01:30:36]} Bxh4 {[%clk 00:00:00]} 40. Red1
{[%clk 01:30:36]} Bf6 {[%clk 00:00:00]} 41. Rxd3 {[%clk 01:30:36]} e5 {[%clk
00:00:00]} 42. Rxd4 {[%clk 01:30:36]} exd4 {[%clk 00:00:00]} 43. Qd3 {[%clk
01:30:36]} Qc5 {[%clk 00:00:00]} 44. Kg2 {[%clk 01:30:36]} h5 {[%clk 00:00:00]}
45. Qe2 {[%clk 01:30:36]} g6 {[%clk 00:00:00]} 46. Re1 {[%clk 01:30:36]} Qc6+
{[%clk 00:00:00]} 47. Kg1 {[%clk 01:30:36]} h4 {[%clk 00:00:00]} 48. gxh4
{[%clk 01:30:36]} Bxh4 {[%clk 00:00:00]} 49. Qd3 {[%clk 01:30:36]} Qd6 {[%clk
00:00:00]} 50. Qf3 {[%clk 01:30:36]} Kf6 {[%clk 00:00:00]} 51. Rd1 {[%clk
01:30:36]} Kg7 {[%clk 00:00:00]} 52. Kg2 {[%clk 01:30:36]} Be7 {[%clk
00:00:00]} 53. Rd3 {[%clk 01:30:36]} Bf6 {[%clk 00:00:00]} 54. Qb7+ {[%clk
01:30:36]} Qe7 {[%clk 00:00:00]} 55. Qxe7+ {[%clk 01:30:36]} Bxe7 {[%clk
00:00:00]} 56. Rxd4 {[%clk 01:30:36]} Bxa3 {[%clk 00:00:00]} 57. Rd7+ {[%clk
01:30:36]} Kf6 {[%clk 00:00:00]} 58. Rxa7 {[%clk 01:30:36]} Bc1 {[%clk
00:00:00]} 59. Rc7 {[%clk 01:30:36]} Bf4 {[%clk 00:00:00]} 60. Rc6+ {[%clk
01:30:36]} Kg5 {[%clk 00:00:00]} 61. f3 {[%clk 01:30:36]} 1/2-1/2

[Event "32nd NATO Chess Championship"]
[Site "Tartu, Estonia"]
[Date "2022.06.30"]
[Round "6.31"]
[White "Kocur, Marc"]
[Black "Stuhr, Finn"]
[Result "1-0"]
[TimeControl "90 min + 30 sec increment from move one"]
[WhiteFideId "205036"]
[BlackFideId "1400789"]
[WhiteElo "1835"]
[BlackElo "1686"]

1. d4 {[%clk 01:30:53]} {[%emt 00:00:05]} Nf6 {[%clk 01:30:54]} {[%emt
00:00:06]} 2. Bf4 {[%clk 01:31:15]} {[%emt 00:00:07]} d6 {[%clk 01:30:51]}
{[%emt 00:00:33]} 3. Nc3 {[%clk 01:31:19]} {[%emt 00:00:27]} e6 {[%clk
01:30:52]} {[%emt 00:00:29]} 4. e4 {[%clk 01:31:21]} {[%emt 00:00:28]} Nbd7
{[%clk 01:30:58]} {[%emt 00:00:24]} 5. e5 {[%clk 01:27:13]} {[%emt 00:04:38]}
Ng8 {[%clk 01:28:33]} {[%emt 00:02:57]} 6. Nf3 {[%clk 01:24:35]} {[%emt
00:03:06]} dxe5 {[%clk 01:28:12]} {[%emt 00:00:51]} 7. dxe5 {[%clk 01:24:09]}
{[%emt 00:00:56]} Bb4 {[%clk 01:28:11]} {[%emt 00:00:31]} 8. Bg5 {[%clk
01:21:14]} {[%emt 00:03:25]} Ne7 {[%clk 01:28:28]} {[%emt 00:00:14]} 9. Qd4
{[%clk 01:20:47]} {[%emt 00:00:56]} c5 {[%clk 01:28:18]} {[%emt 00:00:41]} 10.
Qd3 {[%clk 01:10:54]} {[%emt 00:10:23]} Qc7 {[%clk 01:24:42]} {[%emt 00:04:06]}
11. O-O-O {[%clk 01:02:33]} {[%emt 00:08:51]} c4 {[%clk 01:24:38]} {[%emt
00:00:34]} 12. Nb5 {[%clk 00:58:19]} {[%emt 00:04:44]} cxd3 {[%clk 01:21:04]}
{[%emt 00:04:04]} 13. Nxc7+ {[%clk 00:57:55]} {[%emt 00:00:53]} Kf8 {[%clk
01:21:29]} {[%emt 00:00:05]} 14. Bxe7+ {[%clk 00:57:35]} {[%emt 00:00:50]} Kxe7
{[%clk 01:21:40]} {[%emt 00:00:02]} 15. Nxa8 {[%clk 00:57:52]} {[%emt
00:00:29]} dxc2 {[%clk 01:21:49]} {[%emt 00:00:21]} 16. Kxc2 {[%clk 00:54:08]}
{[%emt 00:04:15]} Ba5 {[%clk 01:21:49]} {[%emt 00:00:30]} 17. a3 {[%clk
00:52:58]} {[%emt 00:01:40]} f6 {[%clk 01:21:16]} {[%emt 00:01:02]} 18. b4
{[%clk 00:52:33]} {[%emt 00:00:54]} Bd8 {[%clk 01:21:45]} {[%emt 00:00:03]} 19.
Rd2 {[%clk 00:48:01]} {[%emt 00:05:01]} a6 {[%clk 01:20:29]} {[%emt 00:01:46]}
20. Be2 {[%clk 00:47:29]} {[%emt 00:01:01]} b5 {[%clk 01:19:20]} {[%emt
00:01:40]} 21. Rhd1 {[%clk 00:47:28]} {[%emt 00:00:31]} Nb8 {[%clk 01:18:20]}
{[%emt 00:01:31]} 22. exf6+ {[%clk 00:45:41]} {[%emt 00:02:17]} gxf6 {[%emt
00:00:15]} 23. Ne1 {[%emt 00:04:33]} Bb7 {[%clk 01:13:30]} {[%emt 00:00:32]} 24.
Bf3 {[%clk 00:46:01]} {[%emt 00:00:09]} Bc8 {[%clk 01:12:41]} {[%emt 00:01:19]}
25. Nd3 {[%clk 00:46:07]} {[%emt 00:00:23]} e5 {[%emt 00:00:27]} 26. Nc5 {[%emt
00:00:33]} f5 {[%clk 01:11:33]} {[%emt 00:00:39]} 27. Nb7 {[%clk 00:45:43]}
{[%emt 00:00:52]} e4 {[%clk 01:11:17]} {[%emt 00:00:47]} 28. Rxd8 {[%clk
00:44:22]} {[%emt 00:01:51]} Rxd8 {[%emt 00:00:30]} 29. Nxd8 {[%emt 00:00:18]}
exf3 {[%clk 01:10:42]} {[%emt 00:00:17]} 30. Nb6 {[%clk 00:44:31]} {[%emt
00:00:20]} Bd7 {[%clk 01:10:26]} {[%emt 00:00:47]} 31. Nxd7 {[%clk 00:44:38]}
{[%emt 00:00:23]} Nxd7 {[%clk 01:10:00]} {[%emt 00:00:06]} 32. Nc6+ 1-0

[Event "32nd NATO Chess Championship"]
[Site "Tartu, Estonia"]
[Date "2022.06.30"]
[Round "6.35"]
[White "Windey, Luc"]
[Black "Simard, Francois"]
[Result "0-1"]
[TimeControl "90 min + 30 sec increment from move one"]
[WhiteFideId "249220"]
[BlackFideId "2621681"]
[WhiteElo "1624"]
[BlackElo "1757"]

1. d4 {[%clk 01:30:59]} {[%emt 04:14:58]} d5 {[%clk 01:28:09]} {[%emt
00:02:53]} 2. Nf3 {[%clk 01:31:21]} {[%emt 00:00:08]} Nf6 {[%clk 01:28:26]}
{[%emt 00:00:13]} 3. Bf4 {[%clk 01:31:44]} {[%emt 00:00:07]} e6 {[%clk
01:28:30]} {[%emt 00:00:26]} 4. e3 {[%clk 01:32:05]} {[%emt 00:00:10]} Bd6
{[%clk 01:28:46]} {[%emt 00:00:13]} 5. Bg3 {[%clk 01:32:29]} {[%emt 00:00:07]}
O-O {[%clk 01:28:35]} {[%emt 00:00:40]} 6. Nbd2 {[%clk 01:32:16]} {[%emt
00:00:44]} c5 {[%clk 01:27:52]} {[%emt 00:01:13]} 7. c3 {[%clk 01:32:30]}
{[%emt 00:00:16]} b6 {[%clk 01:27:53]} {[%emt 00:00:29]} 8. Bd3 {[%clk
01:31:39]} {[%emt 00:01:20]} Bb7 {[%clk 01:21:05]} {[%emt 00:07:18]} 9. Ne5
{[%clk 01:31:17]} {[%emt 00:00:52]} Ne4 {[%clk 01:20:35]} {[%emt 00:01:01]} 10.
Qc2 {[%clk 01:21:35]} {[%emt 00:10:12]} f5 {[%clk 01:16:09]} {[%emt 00:04:56]}
11. f4 {[%clk 01:18:48]} {[%emt 00:03:16]} c4 {[%clk 01:10:46]} {[%emt
00:05:53]} 12. Be2 {[%clk 01:17:19]} {[%emt 00:02:00]} b5 {[%clk 01:09:42]}
{[%emt 00:01:34]} 13. Nxe4 {[%clk 01:10:53]} {[%emt 00:06:57]} dxe4 {[%clk
01:00:04]} {[%emt 00:10:07]} 14. a4 {[%clk 01:06:14]} {[%emt 00:05:09]} Bxe5
{[%clk 00:51:20]} {[%emt 00:09:15]} 15. fxe5 {[%clk 01:04:11]} {[%emt
00:02:33]} Bd5 {[%clk 00:41:16]} {[%emt 00:10:34]} 16. O-O {[%clk 01:00:47]}
{[%emt 00:03:53]} a6 {[%clk 00:38:34]} {[%emt 00:03:13]} 17. axb5 {[%clk
00:49:52]} {[%emt 00:11:25]} axb5 {[%clk 00:38:55]} {[%emt 00:00:09]} 18. Rxa8
{[%clk 00:50:13]} {[%emt 00:00:09]} Bxa8 {[%clk 00:39:19]} {[%emt 00:00:05]} 19.
b3 {[%clk 00:50:41]} {[%emt 00:00:02]} Bd5 {[%clk 00:39:02]} {[%emt 00:00:47]}
20. bxc4 {[%clk 00:48:59]} {[%emt 00:02:13]} bxc4 {[%clk 00:35:20]} {[%emt
00:04:11]} 21. Qa4 {[%clk 00:44:42]} {[%emt 00:04:46]} Qc7 {[%clk 00:34:02]}
{[%emt 00:01:48]} 22. Rb1 {[%clk 00:39:45]} {[%emt 00:05:27]} Nd7 {[%clk
00:31:48]} {[%emt 00:02:42]} 23. Rb4 {[%clk 00:34:48]} {[%emt 00:05:30]} Ra8
{[%clk 00:28:32]} {[%emt 00:03:46]} 24. Qb5 {[%clk 00:29:59]} {[%emt 00:05:19]}
Ra5 {[%clk 00:26:54]} {[%emt 00:02:08]} 25. Rxc4 {[%clk 00:21:59]} {[%emt
00:08:30]} Bxc4 {[%clk 00:24:07]} {[%emt 00:03:17]} 26. Qxc4 {[%clk 00:22:02]}
{[%emt 00:00:28]} Qxc4 {[%clk 00:24:14]} {[%emt 00:00:23]} 27. Bxc4 {[%clk
00:22:26]} {[%emt 00:00:05]} Ra1+ {[%clk 00:19:51]} {[%emt 00:04:52]} 28. Kf2
{[%clk 00:22:35]} {[%emt 00:00:22]} Kf7 {[%clk 00:20:05]} {[%emt 00:00:14]} 29.
Bb5 {[%clk 00:20:09]} {[%emt 00:02:58]} Nb6 {[%clk 00:17:20]} {[%emt 00:03:15]}
30. c4 {[%clk 00:19:36]} {[%emt 00:01:04]} Rc1 {[%clk 00:17:04]} {[%emt
00:00:43]} 31. c5 {[%clk 00:14:25]} {[%emt 00:05:43]} Nd5 {[%clk 00:17:12]}
{[%emt 00:00:21]} 32. Bf4 {[%clk 00:14:18]} {[%emt 00:00:37]} Rc2+ {[%clk
00:10:38]} {[%emt 00:07:04]} 33. Kf1 {[%clk 00:13:32]} {[%emt 00:01:17]} Nxf4
{[%clk 00:10:30]} {[%emt 00:00:38]} 34. exf4 {[%clk 00:13:54]} {[%emt
00:00:08]} Rd2 {[%clk 00:10:30]} {[%emt 00:00:28]} 35. c6 {[%clk 00:12:57]}
{[%emt 00:01:29]} Ke7 {[%clk 00:10:44]} {[%emt 00:00:15]} 36. Ba4 {[%clk
00:12:06]} {[%emt 00:01:22]} Rxd4 {[%clk 00:08:30]} {[%emt 00:02:43]} 37. Bb5
{[%clk 00:08:14]} {[%emt 00:04:23]} Rd1+ {[%clk 00:07:52]} {[%emt 00:01:07]} 38.
Ke2 {[%clk 00:08:35]} {[%emt 00:00:10]} Rc1 {[%clk 00:08:15]} {[%emt 00:00:06]}
39. Kd2 {[%clk 00:08:07]} {[%emt 00:00:59]} Rc5 {[%clk 00:08:33]} {[%emt
00:00:11]} 40. Ba4 {[%clk 00:08:37]} {[%emt 00:00:02]} Kd8 {[%clk 00:08:52]}
{[%emt 00:00:10]} 41. h3 {[%clk 00:07:17]} {[%emt 00:01:49]} Kc7 {[%clk
00:08:53]} {[%emt 00:00:29]} 42. g4 {[%clk 00:07:05]} {[%emt 00:00:43]} g6
{[%clk 00:08:43]} {[%emt 00:00:39]} 43. gxf5 {[%clk 00:02:40]} {[%emt
00:04:55]} gxf5 {[%clk 00:09:07]} {[%emt 00:00:07]} 44. h4 {[%clk 00:02:41]}
{[%emt 00:00:29]} Rxc6 {[%clk 00:08:57]} {[%emt 00:00:39]} 45. Bb3 {[%clk
00:02:41]} {[%emt 00:00:30]} Rb6 {[%clk 00:07:54]} {[%emt 00:01:34]} 46. Bc4
{[%clk 00:02:50]} {[%emt 00:00:21]} Kd7 {[%clk 00:07:43]} {[%emt 00:00:39]} 0-1

[Event "32nd NATO Chess Championship"]
[Site "Tartu, Estonia"]
[Date "2022.06.30"]
[Round "6.36"]
[White "Steen, Kris"]
[Black "Sui, Andres"]
[Result "1/2-1/2"]
[TimeControl "90 min + 30 sec increment from move one"]
[WhiteFideId "264571"]
[BlackFideId "4507029"]
[WhiteElo "1735"]
[BlackElo "1288"]

1. c4 {[%clk 01:30:57]} {[%emt 00:00:02]} e5 {[%clk 01:30:24]} {[%emt
00:00:36]} 2. Nc3 {[%clk 01:31:21]} {[%emt 00:00:08]} Nf6 {[%clk 01:30:12]}
{[%emt 00:00:41]} 3. g3 {[%clk 01:31:31]} {[%emt 00:00:20]} Bc5 {[%clk
01:29:36]} {[%emt 00:01:06]} 4. Bg2 {[%clk 01:31:53]} {[%emt 00:00:07]} O-O
{[%clk 01:29:14]} {[%emt 00:00:52]} 5. e3 {[%clk 01:32:14]} {[%emt 00:00:10]}
a6 {[%clk 01:28:40]} {[%emt 00:01:05]} 6. Nge2 {[%clk 01:32:27]} {[%emt
00:00:16]} d6 {[%clk 01:28:48]} {[%emt 00:00:22]} 7. O-O {[%clk 01:32:45]}
{[%emt 00:00:12]} Nc6 {[%clk 01:29:01]} {[%emt 00:00:17]} 8. d4 {[%clk
01:32:58]} {[%emt 00:00:17]} exd4 {[%clk 01:29:23]} {[%emt 00:00:08]} 9. exd4
{[%clk 01:33:22]} {[%emt 00:00:06]} Ba7 {[%clk 01:29:28]} {[%emt 00:00:25]} 10.
b3 {[%clk 01:33:46]} {[%emt 00:00:07]} Bf5 {[%clk 01:29:21]} {[%emt 00:00:36]}
11. Bb2 {[%clk 01:34:05]} {[%emt 00:00:12]} Qd7 {[%clk 01:29:30]} {[%emt
00:00:21]} 12. Qd2 {[%clk 01:33:50]} {[%emt 00:00:45]} Rfe8 {[%clk 01:29:30]}
{[%emt 00:00:29]} 13. a3 {[%clk 01:29:10]} {[%emt 00:05:11]} Re7 {[%clk
01:29:25]} {[%emt 00:00:35]} 14. Nd5 {[%clk 01:29:05]} {[%emt 00:00:35]} Ree8
{[%clk 01:27:49]} {[%emt 00:02:06]} 15. Nxf6+ {[%clk 01:28:25]} {[%emt
00:01:09]} gxf6 {[%clk 01:28:16]} {[%emt 00:00:03]} 16. Nf4 {[%clk 01:27:51]}
{[%emt 00:01:04]} Bg6 {[%clk 01:26:07]} {[%emt 00:02:39]} 17. Nd5 {[%clk
01:13:37]} {[%emt 00:14:45]} Kg7 {[%clk 01:23:39]} {[%emt 00:02:58]} 18. Qf4
{[%clk 01:08:01]} {[%emt 00:06:06]} f5 {[%clk 01:21:49]} {[%emt 00:02:20]} 19.
Bc3 {[%clk 01:06:02]} {[%emt 00:02:28]} Ne7 {[%clk 01:20:38]} {[%emt 00:01:39]}
20. h4 {[%clk 01:00:34]} {[%emt 00:06:00]} Nxd5 {[%clk 01:17:12]} {[%emt
00:03:56]} 21. Bxd5 {[%clk 01:00:54]} {[%emt 00:00:09]} c6 {[%clk 01:17:08]}
{[%emt 00:00:36]} 22. Bf3 {[%clk 01:01:14]} {[%emt 00:00:09]} h5 {[%clk
01:16:57]} {[%emt 00:00:38]} 23. d5+ {[%clk 00:57:15]} {[%emt 00:04:32]} f6
{[%clk 01:15:54]} {[%emt 00:01:33]} 24. dxc6 {[%clk 00:52:21]} {[%emt
00:05:24]} bxc6 {[%clk 01:15:54]} {[%emt 00:00:28]} 25. Rad1 {[%clk 00:49:24]}
{[%emt 00:03:28]} Rad8 {[%clk 01:14:28]} {[%emt 00:01:56]} 26. Rd3 {[%clk
00:41:09]} {[%emt 00:08:45]} Bb8 {[%clk 01:12:39]} {[%emt 00:02:21]} 27. Qd2
{[%clk 00:40:11]} {[%emt 00:01:27]} Re6 {[%clk 01:12:44]} {[%emt 00:00:24]} 28.
Re1 {[%clk 00:39:20]} {[%emt 00:01:21]} Rde8 {[%clk 01:12:52]} {[%emt
00:00:22]} 29. Rxe6 {[%clk 00:39:40]} {[%emt 00:00:11]} Rxe6 {[%clk 01:13:04]}
{[%emt 00:00:18]} 30. Qd1 {[%clk 00:39:18]} {[%emt 00:00:52]} f4 {[%clk
01:12:32]} {[%emt 00:01:02]} 31. Bxh5 {[%clk 00:36:05]} {[%emt 00:03:43]} Bxd3
{[%clk 01:11:13]} {[%emt 00:01:48]} 32. Qxd3 {[%clk 00:33:14]} {[%emt
00:03:21]} Kf8 {[%clk 01:10:08]} {[%emt 00:01:35]} 33. Bg4 {[%clk 00:30:01]}
{[%emt 00:03:44]} fxg3 {[%clk 01:10:14]} {[%emt 00:00:22]} 34. Qxg3 {[%clk
00:28:20]} {[%emt 00:02:12]} Kf7 {[%clk 01:08:37]} {[%emt 00:02:07]} 35. Qf3
{[%clk 00:25:53]} {[%emt 00:02:58]} d5 {[%clk 01:08:21]} {[%emt 00:00:45]} 36.
Bxe6+ {[%clk 00:21:50]} {[%emt 00:04:33]} Qxe6 {[%clk 01:08:50]} {[%emt
00:00:02]} 37. cxd5 {[%clk 00:21:56]} {[%emt 00:00:25]} cxd5 {[%clk 01:09:17]}
{[%emt 00:00:03]} 38. Qh5+ {[%clk 00:20:04]} {[%emt 00:02:22]} Ke7 {[%clk
01:09:44]} {[%emt 00:00:02]} 39. Qh7+ {[%clk 00:18:55]} {[%emt 00:01:39]} Kd8
{[%clk 01:09:13]} {[%emt 00:01:02]} 40. Qh8+ {[%clk 00:18:50]} {[%emt
00:00:36]} Kc7 {[%clk 01:09:35]} {[%emt 00:00:08]} 41. Qg7+ {[%clk 00:16:20]}
{[%emt 00:03:00]} 1/2-1/2